[Event "Veteran-SM 65+ 2025"]
[Site "Uppsala, Sweden"]
[Date "2025.07.05"]
[Round "8.4"]
[White "Malmdin, Nils-Ake"]
[Black "Green, Per"]
[Result "1-0"]
[TimeControl "90 min for 40 move + 30 min with an increment of 30 sec starting move 1"]
[WhiteTitle "FM"]
[WhiteFideId "1701584"]
[BlackFideId "1703811"]
[WhiteElo "2103"]
[BlackElo "1954"]

1. e4 {[%clk 01:30:46]} {[%emt 00:00:12]} c5 {[%clk 01:30:23]} {[%emt
00:00:33]} 2. Nf3 {[%clk 01:30:58]} {[%emt 00:00:22]} e6 {[%clk 01:30:33]}
{[%emt 00:00:21]} 3. d4 {[%clk 01:31:06]} {[%emt 00:00:21]} cxd4 {[%clk
01:30:49]} {[%emt 00:00:15]} 4. Nxd4 {[%clk 01:31:23]} {[%emt 00:00:12]} Nc6
{[%clk 01:31:05]} {[%emt 00:00:15]} 5. Nb5 {[%clk 01:30:28]} {[%emt 00:01:25]}
d6 {[%clk 01:31:16]} {[%emt 00:00:19]} 6. Bf4 {[%clk 01:30:46]} {[%emt
00:00:10]} e5 {[%clk 01:31:16]} {[%emt 00:00:32]} 7. Be3 {[%clk 01:31:07]}
{[%emt 00:00:09]} Be7 {[%clk 01:30:42]} {[%emt 00:01:03]} 8. c4 {[%clk
01:29:58]} {[%emt 00:01:39]} Nf6 {[%clk 01:29:59]} {[%emt 00:01:15]} 9. N1c3
{[%clk 01:29:31]} {[%emt 00:00:55]} a6 {[%clk 01:29:54]} {[%emt 00:00:36]} 10.
Na3 {[%clk 01:29:40]} {[%emt 00:00:21]} Ng4 {[%clk 01:29:10]} {[%emt 00:01:14]}
11. Nc2 {[%clk 01:26:51]} {[%emt 00:03:18]} Nxe3 {[%clk 01:24:54]} {[%emt
00:04:46]} 12. Nxe3 {[%clk 01:27:04]} {[%emt 00:00:16]} O-O {[%clk 01:24:00]}
{[%emt 00:01:26]} 13. g3 {[%clk 01:26:17]} {[%emt 00:01:17]} Nd4 {[%clk
01:23:47]} {[%emt 00:00:43]} 14. Bg2 {[%clk 01:25:46]} {[%emt 00:01:01]} b5
{[%clk 01:23:21]} {[%emt 00:00:56]} 15. O-O {[%clk 01:24:22]} {[%emt 00:01:52]}
bxc4 {[%clk 01:20:52]} {[%emt 00:03:02]} 16. Nxc4 {[%clk 01:24:38]} {[%emt
00:00:12]} Be6 {[%clk 01:17:43]} {[%emt 00:03:41]} 17. Ne3 {[%clk 01:24:55]}
{[%emt 00:00:12]} Rb8 {[%clk 01:14:17]} {[%emt 00:03:56]} 18. Rb1 {[%clk
01:22:03]} {[%emt 00:03:22]} f5 {[%clk 01:11:29]} {[%emt 00:03:17]} 19. exf5
{[%clk 01:20:25]} {[%emt 00:02:08]} Nxf5 {[%clk 01:11:35]} {[%emt 00:00:25]} 20.
Ned5 {[%clk 01:17:47]} {[%emt 00:03:07]} Nd4 {[%clk 01:03:13]} {[%emt
00:08:53]} 21. b4 {[%clk 01:16:01]} {[%emt 00:02:16]} Qd7 {[%clk 00:57:58]}
{[%emt 00:05:44]} 22. Nxe7+ {[%clk 01:09:29]} {[%emt 00:07:02]} Qxe7 {[%clk
00:58:13]} {[%emt 00:00:16]} 23. Rb2 {[%clk 01:02:24]} {[%emt 00:07:34]} Rfc8
{[%clk 00:52:09]} {[%emt 00:06:35]} 24. Nd5 {[%clk 01:01:04]} {[%emt 00:01:49]}
Qf7 {[%clk 00:52:15]} {[%emt 00:00:24]} 25. Ne3 {[%clk 01:01:24]} {[%emt
00:00:11]} Rc3 {[%clk 00:48:07]} {[%emt 00:04:37]} 26. a4 {[%clk 00:52:57]}
{[%emt 00:08:58]} Rb3 {[%clk 00:38:17]} {[%emt 00:10:19]} 27. Rxb3 {[%clk
00:51:30]} {[%emt 00:01:57]} Bxb3 {[%clk 00:33:07]} {[%emt 00:05:41]} 28. Qd3
{[%clk 00:48:04]} {[%emt 00:03:55]} Qa7 {[%clk 00:24:01]} {[%emt 00:09:34]} 29.
b5 {[%clk 00:36:47]} {[%emt 00:11:49]} axb5 {[%clk 00:23:45]} {[%emt 00:00:46]}
30. axb5 {[%clk 00:37:01]} {[%emt 00:00:17]} Be6 {[%clk 00:23:19]} {[%emt
00:00:55]} 31. Rb1 {[%clk 00:35:22]} {[%emt 00:02:08]} Qc5 {[%clk 00:21:53]}
{[%emt 00:01:57]} 32. Bf1 {[%clk 00:30:00]} {[%emt 00:05:52]} d5 {[%clk
00:20:28]} {[%emt 00:01:55]} 33. Qd1 {[%clk 00:24:19]} {[%emt 00:06:10]} h6
{[%clk 00:16:27]} {[%emt 00:04:32]} 34. Rc1 {[%clk 00:23:38]} {[%emt 00:01:12]}
Qd6 {[%clk 00:16:13]} {[%emt 00:00:43]} 35. Qa4 {[%clk 00:21:46]} {[%emt
00:02:23]} Qb6 {[%clk 00:14:17]} {[%emt 00:02:26]} 36. Qa6 {[%clk 00:20:16]}
{[%emt 00:02:00]} Bf7 {[%clk 00:07:27]} {[%emt 00:07:19]} 37. Qxb6 {[%clk
00:18:07]} {[%emt 00:02:40]} Rxb6 {[%clk 00:07:48]} {[%emt 00:00:09]} 38. Rc5
{[%clk 00:16:27]} {[%emt 00:02:09]} Nf3+ {[%clk 00:06:33]} {[%emt 00:01:45]} 39.
Kh1 {[%clk 00:14:14]} {[%emt 00:02:43]} d4 {[%clk 00:04:18]} {[%emt 00:02:45]}
40. Nc4 {[%clk 00:13:30]} {[%emt 00:01:14]} Bxc4 {[%clk 00:01:09]} {[%emt
00:03:41]} 41. Bxc4+ {[%clk 00:13:55]} {[%emt 00:00:03]} Kh7 {[%clk 00:30:18]}
{[%emt 00:01:22]} 42. Bd3+ {[%clk 00:38:50]} {[%emt 00:05:34]} g6 {[%clk
00:28:14]} {[%emt 00:02:34]} 43. Rc6 {[%clk 00:38:45]} {[%emt 00:00:36]} Rb8
{[%clk 00:21:52]} {[%emt 00:06:52]} 44. Rxg6 {[%clk 00:36:12]} {[%emt
00:03:03]} Rf8 {[%clk 00:16:16]} {[%emt 00:06:04]} 45. Rf6+ {[%clk 00:35:37]}
{[%emt 00:01:06]} Kg7 {[%clk 00:16:39]} {[%emt 00:00:08]} 46. Rxf8 {[%clk
00:35:47]} {[%emt 00:00:19]} Kxf8 {[%clk 00:16:56]} {[%emt 00:00:14]} 47. b6
{[%clk 00:36:09]} {[%emt 00:00:07]} e4 {[%clk 00:16:37]} {[%emt 00:00:50]} 48.
Bxe4 {[%emt 00:01:13]} Ne5 {[%clk 00:16:51]} 49. b7 {[%clk 00:34:43]} {[%emt
00:01:29]} Nd7 {[%clk 00:17:08]} {[%emt 00:00:13]} 50. Kg1 {[%clk 00:34:48]}
{[%emt 00:00:25]} Ke7 {[%clk 00:17:26]} {[%emt 00:00:12]} 51. Kf1 {[%clk
00:34:59]} {[%emt 00:00:18]} Kd6 {[%clk 00:17:51]} {[%emt 00:00:06]} 52. Ke2
{[%clk 00:34:43]} {[%emt 00:00:45]} Kc5 {[%clk 00:16:45]} {[%emt 00:01:35]} 53.
Kd3 {[%clk 00:34:12]} {[%emt 00:01:01]} Ne5+ {[%clk 00:16:59]} {[%emt
00:00:17]} 54. Kc2 {[%clk 00:34:07]} {[%emt 00:00:35]} Nd7 {[%clk 00:17:16]}
{[%emt 00:00:13]} 55. f4 {[%clk 00:34:31]} {[%emt 00:00:07]} Kc4 {[%clk
00:16:10]} {[%emt 00:01:37]} 56. g4 {[%clk 00:32:01]} {[%emt 00:02:58]} d3+
{[%clk 00:15:06]} {[%emt 00:01:35]} 57. Bxd3+ {[%clk 00:31:58]} {[%emt
00:00:33]} Kd4 {[%clk 00:15:26]} {[%emt 00:00:10]} 58. Kd2 {[%clk 00:32:05]}
{[%emt 00:00:23]} 1-0

[Event "Veteran-SM 65+ 2025"]
[Site "Uppsala, Sweden"]
[Date "2025.07.05"]
[Round "8.5"]
[White "Dolata, Henryk"]
[Black "Andersson, Anders"]
[Result "0-1"]
[TimeControl "90 min for 40 move + 30 min with an increment of 30 sec starting move 1"]
[WhiteFideId "1709046"]
[BlackFideId "1738259"]
[WhiteElo "1958"]
[BlackElo "1991"]

1. e4 {[%clk 01:30:57]} {[%emt 00:00:02]} c5 {[%clk 01:30:42]} {[%emt
00:00:18]} 2. c3 {[%clk 01:31:19]} {[%emt 00:00:09]} Nf6 {[%clk 01:30:03]}
{[%emt 00:01:08]} 3. e5 {[%clk 01:31:19]} {[%emt 00:00:30]} Nd5 {[%clk
01:30:18]} {[%emt 00:00:15]} 4. d4 {[%clk 01:31:40]} {[%emt 00:00:09]} cxd4
{[%clk 01:29:52]} {[%emt 00:00:55]} 5. cxd4 {[%clk 01:32:05]} {[%emt 00:00:06]}
d6 {[%clk 01:28:09]} {[%emt 00:02:13]} 6. Nf3 {[%clk 01:30:53]} {[%emt
00:01:42]} Nc6 {[%clk 01:26:59]} {[%emt 00:01:40]} 7. Bc4 {[%clk 01:27:36]}
{[%emt 00:03:47]} Nb6 {[%clk 01:24:06]} {[%emt 00:03:23]} 8. Bb5 {[%clk
01:27:39]} {[%emt 00:00:26]} a6 {[%clk 01:22:58]} {[%emt 00:01:38]} 9. Bxc6+
{[%clk 01:23:44]} {[%emt 00:04:26]} bxc6 {[%clk 01:23:16]} {[%emt 00:00:12]} 10.
O-O {[%clk 01:21:32]} {[%emt 00:02:42]} g6 {[%clk 01:17:14]} {[%emt 00:06:31]}
11. Re1 {[%clk 01:10:00]} {[%emt 00:12:02]} Bg7 {[%clk 01:12:36]} {[%emt
00:05:07]} 12. exd6 {[%clk 00:51:40]} {[%emt 00:18:51]} Qxd6 {[%clk 01:12:41]}
{[%emt 00:00:25]} 13. b3 {[%clk 00:48:37]} {[%emt 00:03:33]} Nd5 {[%clk
01:09:02]} {[%emt 00:04:08]} 14. Ba3 {[%clk 00:47:30]} {[%emt 00:01:38]} Qf6
{[%clk 01:00:18]} {[%emt 00:09:14]} 15. Nbd2 {[%clk 00:46:34]} {[%emt
00:01:26]} O-O {[%clk 00:57:30]} {[%emt 00:03:18]} 16. Rc1 {[%clk 00:42:54]}
{[%emt 00:04:10]} Bf5 {[%clk 00:40:26]} {[%emt 00:17:34]} 17. Ne5 {[%clk
00:36:36]} {[%emt 00:06:48]} Rfc8 {[%clk 00:38:32]} {[%emt 00:02:24]} 18. g4
{[%clk 00:25:56]} {[%emt 00:11:10]} Be6 {[%clk 00:37:29]} {[%emt 00:01:34]} 19.
Nxc6 {[%clk 00:22:28]} {[%emt 00:03:58]} Rc7 {[%clk 00:27:34]} {[%emt
00:10:24]} 20. Ne5 {[%clk 00:20:48]} {[%emt 00:02:09]} Rac8 {[%clk 00:27:44]}
{[%emt 00:00:21]} 21. Rxc7 {[%clk 00:18:16]} {[%emt 00:03:02]} Rxc7 {[%clk
00:25:12]} {[%emt 00:03:02]} 22. Ne4 {[%clk 00:14:22]} {[%emt 00:04:24]} Qh4
{[%clk 00:25:11]} {[%emt 00:00:30]} 23. f3 {[%clk 00:13:50]} {[%emt 00:01:02]}
Bh6 {[%clk 00:25:05]} {[%emt 00:00:36]} 24. Nc5 {[%clk 00:12:38]} {[%emt
00:01:42]} Bc8 {[%clk 00:24:03]} {[%emt 00:01:32]} 25. Bc1 {[%clk 00:11:08]}
{[%emt 00:02:01]} Nf4 {[%clk 00:21:19]} {[%emt 00:03:13]} 26. Bxf4 {[%clk
00:08:52]} {[%emt 00:02:47]} Bxf4 {[%clk 00:21:38]} {[%emt 00:00:10]} 27. Re2
{[%clk 00:09:11]} {[%emt 00:00:11]} Bb7 {[%clk 00:21:14]} {[%emt 00:00:55]} 28.
Qd3 {[%clk 00:06:14]} {[%emt 00:03:27]} Qh3 {[%clk 00:19:46]} {[%emt 00:01:58]}
29. Rf2 {[%clk 00:06:10]} {[%emt 00:00:34]} Bxe5 {[%clk 00:18:58]} {[%emt
00:01:18]} 30. b4 {[%clk 00:03:44]} {[%emt 00:02:56]} Bf4 {[%clk 00:17:14]}
{[%emt 00:02:13]} 31. a4 {[%clk 00:03:28]} {[%emt 00:00:47]} Bd5 {[%clk
00:16:16]} {[%emt 00:01:27]} 32. b5 {[%clk 00:01:52]} {[%emt 00:02:07]} axb5
{[%clk 00:16:30]} {[%emt 00:00:16]} 33. axb5 {[%clk 00:02:21]} Ra7 {[%clk
00:14:33]} {[%emt 00:02:26]} 34. Na6 {[%clk 00:01:28]} {[%emt 00:01:25]} Qh6
{[%clk 00:12:21]} {[%emt 00:02:41]} 35. Rc2 {[%clk 00:01:24]} {[%emt 00:00:34]}
Qf8 {[%clk 00:10:46]} {[%emt 00:02:04]} 36. Rc5 {[%clk 00:00:43]} {[%emt
00:01:11]} Qd8 {[%clk 00:10:08]} {[%emt 00:01:08]} 37. Qc3 {[%clk 00:00:37]}
{[%emt 00:00:36]} Ra8 {[%clk 00:10:00]} {[%emt 00:00:37]} 38. b6 {[%clk
00:01:00]} {[%emt 00:00:08]} Qxb6 {[%clk 00:09:16]} {[%emt 00:01:15]} 39. Nc7
{[%clk 00:01:12]} {[%emt 00:00:18]} Bxc7 {[%clk 00:09:12]} {[%emt 00:00:34]} 40.
Rxc7 {[%clk 00:01:41]} {[%emt 00:00:01]} Qb1+ {[%clk 00:08:37]} {[%emt
00:01:04]} 41. Kg2 {[%clk 00:01:54]} {[%emt 00:00:18]} Ra2+ {[%clk 00:08:42]}
{[%emt 00:00:25]} 42. Kg3 {[%clk 00:02:09]} {[%emt 00:00:14]} Qg1+ {[%clk
00:07:54]} {[%emt 00:01:18]} 43. Kf4 {[%clk 00:02:38]} {[%emt 00:00:02]} Qxh2+
{[%clk 00:07:57]} {[%emt 00:00:26]} 44. Ke3 {[%clk 00:03:06]} {[%emt 00:00:02]}
g5 {[%clk 00:07:04]} {[%emt 00:01:23]} 0-1

[Event "Veteran-SM 65+ 2025"]
[Site "Uppsala, Sweden"]
[Date "2025.07.05"]
[Round "8.6"]
[White "Wedin, Svante"]
[Black "Carlsson, Ingvar"]
[Result "0-1"]
[TimeControl "90 min for 40 move + 30 min with an increment of 30 sec starting move 1"]
[WhiteFideId "1711989"]
[BlackFideId "1702670"]
[WhiteElo "1864"]
[BlackElo "1987"]

1. e4 {[%clk 01:30:57]} {[%emt 00:00:03]} e6 {[%clk 01:30:23]} {[%emt
00:00:36]} 2. d4 {[%clk 01:31:21]} {[%emt 00:00:07]} d5 {[%clk 01:30:48]}
{[%emt 00:00:05]} 3. Nc3 {[%clk 01:31:43]} {[%emt 00:00:08]} Nf6 {[%clk
01:31:07]} {[%emt 00:00:11]} 4. e5 {[%clk 01:31:22]} {[%emt 00:00:51]} Nfd7
{[%clk 01:31:28]} {[%emt 00:00:08]} 5. f4 {[%clk 01:30:20]} {[%emt 00:01:32]}
c5 {[%clk 01:31:51]} {[%emt 00:00:08]} 6. Nf3 {[%clk 01:30:45]} {[%emt
00:00:05]} Nc6 {[%clk 01:32:00]} {[%emt 00:00:21]} 7. Be3 {[%clk 01:31:02]}
{[%emt 00:00:13]} Qb6 {[%clk 01:31:00]} {[%emt 00:01:30]} 8. Na4 {[%clk
01:23:20]} {[%emt 00:08:13]} Qa5+ {[%clk 01:30:36]} {[%emt 00:00:53]} 9. c3
{[%clk 01:23:35]} {[%emt 00:00:16]} cxd4 {[%clk 01:13:23]} {[%emt 00:17:42]} 10.
Nxd4 {[%clk 01:22:00]} {[%emt 00:02:05]} Nxd4 {[%clk 01:13:24]} {[%emt
00:00:29]} 11. Bxd4 {[%clk 01:06:49]} {[%emt 00:15:41]} b5 {[%clk 01:07:33]}
{[%emt 00:06:21]} 12. b4 {[%clk 01:03:49]} {[%emt 00:03:30]} Qxa4 {[%clk
01:07:28]} {[%emt 00:00:35]} 13. Qxa4 {[%clk 01:02:53]} {[%emt 00:01:26]} bxa4
{[%clk 01:07:55]} {[%emt 00:00:03]} 14. Bb5 {[%clk 01:03:13]} {[%emt 00:00:10]}
a3 {[%clk 01:06:23]} {[%emt 00:02:02]} 15. Bc6 {[%clk 00:58:43]} {[%emt
00:05:00]} Rb8 {[%clk 01:01:56]} {[%emt 00:04:56]} 16. Bxa7 {[%clk 00:56:07]}
{[%emt 00:03:07]} Rb7 {[%clk 01:01:52]} {[%emt 00:00:35]} 17. Bxb7 {[%clk
00:56:29]} {[%emt 00:00:08]} Bxb7 {[%clk 01:02:16]} {[%emt 00:00:05]} 18. Rb1
{[%clk 00:51:43]} {[%emt 00:05:16]} Be7 {[%clk 01:02:25]} {[%emt 00:00:21]} 19.
O-O {[%clk 00:50:00]} {[%emt 00:02:14]} O-O {[%clk 01:02:38]} {[%emt 00:00:17]}
20. Rfd1 {[%clk 00:48:12]} {[%emt 00:02:17]} Ra8 {[%clk 00:59:04]} {[%emt
00:04:04]} 21. Be3 {[%clk 00:47:35]} {[%emt 00:01:07]} f6 {[%clk 00:33:23]}
{[%emt 00:26:10]} 22. exf6 {[%clk 00:42:37]} {[%emt 00:05:29]} Nxf6 {[%clk
00:33:37]} {[%emt 00:00:15]} 23. Rb3 {[%clk 00:39:47]} {[%emt 00:03:21]} Bc6
{[%clk 00:31:49]} {[%emt 00:02:18]} 24. Bc1 {[%clk 00:34:00]} {[%emt 00:06:17]}
Bb5 {[%clk 00:32:05]} {[%emt 00:00:14]} 25. Rxa3 {[%clk 00:32:48]} {[%emt
00:01:43]} Rxa3 {[%clk 00:32:27]} {[%emt 00:00:07]} 26. Bxa3 {[%clk 00:33:03]}
{[%emt 00:00:16]} Bc4 {[%clk 00:32:38]} {[%emt 00:00:18]} 27. Ra1 {[%clk
00:28:14]} {[%emt 00:05:20]} Ne4 {[%clk 00:31:38]} {[%emt 00:01:29]} 28. Bb2
{[%clk 00:27:58]} {[%emt 00:00:46]} Bf6 {[%clk 00:31:16]} {[%emt 00:00:52]} 29.
a4 {[%clk 00:27:59]} {[%emt 00:00:30]} Nxc3 {[%clk 00:31:33]} {[%emt 00:00:13]}
30. Bxc3 {[%clk 00:26:46]} {[%emt 00:01:43]} Bxc3 {[%clk 00:31:50]} {[%emt
00:00:12]} 31. Rb1 {[%clk 00:24:42]} {[%emt 00:02:34]} Ba2 {[%clk 00:31:33]}
{[%emt 00:00:47]} 32. Rc1 {[%clk 00:22:31]} {[%emt 00:02:40]} Bxb4 {[%clk
00:31:34]} {[%emt 00:00:30]} 33. Rc8+ {[%clk 00:22:55]} {[%emt 00:00:06]} Kf7
{[%clk 00:31:33]} {[%emt 00:00:31]} 34. Kf2 {[%clk 00:22:11]} {[%emt 00:01:14]}
Bb3 {[%clk 00:27:12]} {[%emt 00:04:50]} 35. Ra8 {[%clk 00:22:10]} {[%emt
00:00:32]} Bc5+ {[%clk 00:17:44]} {[%emt 00:09:58]} 36. Kg3 {[%clk 00:11:53]}
{[%emt 00:10:47]} d4 {[%clk 00:10:57]} {[%emt 00:07:17]} 37. a5 {[%clk
00:08:13]} {[%emt 00:04:11]} d3 {[%clk 00:10:42]} {[%emt 00:00:45]} 38. Rd8
{[%clk 00:08:29]} {[%emt 00:00:14]} Bd5 {[%clk 00:10:12]} {[%emt 00:00:59]} 0-1

[Event "Veteran-SM 65+ 2025"]
[Site "Uppsala, Sweden"]
[Date "2025.07.05"]
[Round "8.7"]
[White "Magnussen, Pal"]
[Black "Hogberg, Thomas"]
[Result "0-1"]
[TimeControl "90 min for 40 move + 30 min with an increment of 30 sec starting move 1"]
[WhiteFideId "1711814"]
[BlackFideId "1706039"]
[WhiteElo "1954"]
[BlackElo "1979"]

1. e4 {[%clk 01:30:56]} {[%emt 00:00:03]} e6 {[%clk 01:27:47]} {[%emt
00:03:14]} 2. d4 {[%clk 01:30:50]} {[%emt 00:00:35]} d5 {[%clk 01:28:10]}
{[%emt 00:00:07]} 3. e5 {[%clk 01:31:08]} {[%emt 00:00:13]} c5 {[%clk
01:28:34]} {[%emt 00:00:06]} 4. c3 {[%clk 01:31:06]} {[%emt 00:00:31]} Nc6
{[%clk 01:28:58]} {[%emt 00:00:07]} 5. Nf3 {[%clk 01:31:09]} {[%emt 00:00:27]}
Qb6 {[%clk 01:29:02]} {[%emt 00:00:26]} 6. Bd3 {[%clk 01:27:50]} {[%emt
00:03:48]} Bd7 {[%clk 01:28:01]} {[%emt 00:01:31]} 7. O-O {[%clk 01:27:58]}
{[%emt 00:00:22]} Nh6 {[%clk 01:28:12]} {[%emt 00:00:20]} 8. dxc5 {[%clk
01:20:52]} {[%emt 00:07:36]} Bxc5 {[%clk 01:28:13]} {[%emt 00:00:29]} 9. b4
{[%clk 01:19:52]} {[%emt 00:01:30]} Be7 {[%clk 01:18:42]} {[%emt 00:10:00]} 10.
a4 {[%clk 01:02:46]} {[%emt 00:17:37]} Ng4 {[%clk 01:07:56]} {[%emt 00:11:16]}
11. Bf4 {[%clk 00:57:04]} {[%emt 00:06:12]} f6 {[%clk 01:07:39]} {[%emt
00:00:47]} 12. exf6 {[%clk 00:45:14]} {[%emt 00:12:20]} Nxf6 {[%clk 01:07:06]}
{[%emt 00:01:03]} 13. a5 {[%clk 00:43:50]} {[%emt 00:01:54]} Qd8 {[%clk
01:07:27]} {[%emt 00:00:08]} 14. a6 {[%clk 00:39:22]} {[%emt 00:04:59]} b6
{[%clk 01:03:55]} {[%emt 00:04:01]} 15. Re1 {[%clk 00:38:35]} {[%emt 00:01:17]}
Qc8 {[%clk 01:01:13]} {[%emt 00:03:12]} 16. Na3 {[%clk 00:35:53]} {[%emt
00:03:13]} O-O {[%clk 00:57:01]} {[%emt 00:04:41]} 17. Nb5 {[%clk 00:24:59]}
{[%emt 00:11:25]} Ne4 {[%clk 00:51:55]} {[%emt 00:05:36]} 18. Bc1 {[%clk
00:23:50]} {[%emt 00:01:38]} Nd8 {[%clk 00:50:48]} {[%emt 00:01:37]} 19. Bxe4
{[%clk 00:19:19]} {[%emt 00:05:01]} dxe4 {[%clk 00:43:15]} {[%emt 00:08:04]} 20.
Nfd4 {[%clk 00:18:59]} {[%emt 00:00:50]} e5 {[%clk 00:43:24]} {[%emt 00:00:21]}
21. Qb3+ {[%clk 00:19:04]} {[%emt 00:00:25]} Kh8 {[%clk 00:42:42]} {[%emt
00:01:12]} 22. Rxe4 {[%clk 00:18:22]} {[%emt 00:01:11]} exd4 {[%clk 00:42:39]}
{[%emt 00:00:33]} 23. Nxd4 {[%clk 00:17:34]} {[%emt 00:01:18]} Bf6 {[%clk
00:41:59]} {[%emt 00:01:11]} 24. Bb2 {[%clk 00:17:03]} {[%emt 00:01:01]} Nc6
{[%clk 00:37:31]} {[%emt 00:04:57]} 25. Nf3 {[%clk 00:17:07]} {[%emt 00:00:26]}
Qc7 {[%clk 00:35:51]} {[%emt 00:02:10]} 26. Rae1 {[%clk 00:16:48]} {[%emt
00:00:49]} Rae8 {[%clk 00:35:29]} {[%emt 00:00:52]} 27. Qf7 {[%clk 00:15:18]}
{[%emt 00:02:00]} Qd8 {[%clk 00:34:14]} {[%emt 00:01:46]} 28. Rxe8 {[%clk
00:14:32]} {[%emt 00:01:15]} Rxe8 {[%clk 00:34:32]} {[%emt 00:00:11]} 29. Rd1
{[%clk 00:14:14]} {[%emt 00:00:49]} Re7 {[%clk 00:34:13]} {[%emt 00:00:49]} 30.
Qd5 {[%clk 00:13:54]} {[%emt 00:00:50]} Qe8 {[%clk 00:34:23]} {[%emt 00:00:20]}
31. b5 {[%clk 00:10:15]} {[%emt 00:04:10]} Ne5 {[%clk 00:31:41]} {[%emt
00:03:12]} 32. Nd4 {[%clk 00:09:31]} {[%emt 00:01:13]} Nd3 {[%clk 00:31:40]}
{[%emt 00:00:32]} 0-1

[Event "Veteran-SM 65+ 2025"]
[Site "Uppsala, Sweden"]
[Date "2025.07.05"]
[Round "8.8"]
[White "Haggvik, Kjell"]
[Black "Lundquist, Leif"]
[Result "1/2-1/2"]
[TimeControl "90 min for 40 move + 30 min with an increment of 30 sec starting move 1"]
[WhiteFideId "1776495"]
[BlackFideId "1710990"]
[WhiteElo "1932"]
[BlackElo "1890"]

1. c4 {[%clk 01:30:55]} {[%emt 00:00:03]} c5 {[%clk 01:30:55]} {[%emt
00:00:07]} 2. Nc3 {[%clk 01:31:17]} {[%emt 00:00:08]} Nc6 {[%clk 01:31:21]}
{[%emt 00:00:04]} 3. g3 {[%clk 01:31:39]} {[%emt 00:00:08]} g6 {[%clk
01:31:42]} {[%emt 00:00:09]} 4. Bg2 {[%clk 01:32:03]} {[%emt 00:00:06]} Bg7
{[%clk 01:32:06]} {[%emt 00:00:05]} 5. Nf3 {[%clk 01:32:09]} {[%emt 00:00:24]}
d6 {[%clk 01:32:25]} {[%emt 00:00:11]} 6. O-O {[%clk 01:32:25]} {[%emt
00:00:15]} Qd7 {[%clk 01:32:48]} {[%emt 00:00:07]} 7. e3 {[%clk 01:26:32]}
{[%emt 00:06:23]} Bxc3 {[%clk 01:33:08]} {[%emt 00:00:10]} 8. bxc3 {[%clk
01:26:18]} {[%emt 00:00:44]} b6 {[%clk 01:33:08]} {[%emt 00:00:30]} 9. d4
{[%clk 01:23:12]} {[%emt 00:03:35]} Bb7 {[%clk 01:24:45]} {[%emt 00:08:53]} 10.
Qa4 {[%clk 01:14:57]} {[%emt 00:08:45]} Na5 {[%clk 01:17:29]} {[%emt 00:07:47]}
11. Qxd7+ {[%clk 01:13:07]} {[%emt 00:02:20]} Kxd7 {[%clk 01:17:56]} {[%emt
00:00:02]} 12. dxc5 {[%clk 01:11:26]} {[%emt 00:02:12]} bxc5 {[%clk 01:16:25]}
{[%emt 00:02:01]} 13. Rb1 {[%clk 01:09:13]} {[%emt 00:02:43]} Kc7 {[%clk
01:04:08]} {[%emt 00:12:46]} 14. Rb5 {[%clk 01:05:47]} {[%emt 00:03:57]} Nc6
{[%clk 00:58:35]} {[%emt 00:06:03]} 15. Nd2 {[%clk 00:55:14]} {[%emt 00:11:03]}
Nf6 {[%clk 00:55:29]} {[%emt 00:03:35]} 16. Ba3 {[%clk 00:54:42]} {[%emt
00:01:03]} Rhb8 {[%clk 00:46:25]} {[%emt 00:09:34]} 17. Rfb1 {[%clk 00:53:08]}
{[%emt 00:02:04]} Nd7 {[%clk 00:45:33]} {[%emt 00:01:22]} 18. Kf1 {[%clk
00:50:59]} {[%emt 00:02:39]} Ba6 {[%clk 00:42:40]} {[%emt 00:03:23]} 19. Ke2
{[%clk 00:44:28]} {[%emt 00:07:01]} Nde5 {[%emt 00:11:26]} 20. Bxc6 {[%clk
00:38:00]} {[%emt 00:01:33]} Nxc6 {[%clk 00:33:56]} {[%emt 00:03:43]} 21. Rxb8
{[%clk 00:36:21]} {[%emt 00:02:08]} Rxb8 {[%clk 00:34:18]} {[%emt 00:00:08]} 22.
Rxb8 {[%clk 00:36:36]} {[%emt 00:00:15]} Kxb8 {[%clk 00:34:21]} {[%emt
00:00:27]} 23. f4 {[%clk 00:36:38]} {[%emt 00:00:28]} Kc7 {[%clk 00:32:42]}
{[%emt 00:02:09]} 24. e4 {[%clk 00:35:09]} {[%emt 00:01:59]} Na5 {[%clk
00:31:06]} {[%emt 00:02:16]} 25. Kd3 Kc6 {[%emt 00:05:45]} 26. Bc1 {[%clk
00:30:43]} {[%emt 00:00:02]} e6 {[%clk 00:24:00]} {[%emt 00:05:07]} 27. Nb3
Bxc4+ {[%emt 00:08:44]} 28. Kc2 {[%clk 00:25:56]} {[%emt 00:00:01]} Bxb3+
{[%clk 00:23:34]} {[%emt 00:00:57]} 29. axb3 {[%clk 00:26:16]} {[%emt
00:00:09]} c4 {[%emt 00:01:44]} 30. b4 {[%emt 00:01:27]} Nb7 {[%clk 00:21:45]}
{[%emt 00:00:22]} 31. Be3 {[%clk 00:25:07]} {[%emt 00:01:25]} a5 {[%clk
00:20:31]} {[%emt 00:01:45]} 32. bxa5 {[%clk 00:16:20]} {[%emt 00:01:25]} Nc5
{[%clk 00:16:55]} 33. e5 {[%clk 00:16:20]} {[%emt 00:12:27]} dxe5 {[%clk
00:16:34]} 34. fxe5 {[%clk 00:16:42]} {[%emt 00:01:00]} Kb5 {[%clk 00:15:07]}
35. Bxc5 {[%clk 00:10:47]} {[%emt 00:08:21]} Kxc5 {[%emt 00:00:24]} 36. a6 Kb6
{[%clk 00:15:49]} {[%emt 00:00:02]} 37. a7 {[%clk 00:11:34]} {[%emt 00:00:06]}
Kxa7 {[%clk 00:16:14]} {[%emt 00:00:05]} 38. Kd2 {[%clk 00:11:59]} {[%emt
00:00:05]} Kb6 {[%clk 00:15:57]} {[%emt 00:00:46]} 39. Ke3 {[%clk 00:12:07]}
{[%emt 00:00:22]} Kc6 {[%clk 00:13:43]} {[%emt 00:02:44]} 40. Kd4 {[%clk
00:09:41]} {[%emt 00:02:57]} Kb5 {[%emt 00:00:15]} 41. Ke3 {[%clk 00:08:09]}
1/2-1/2